Cogmind - Beta 17 @@@ ROGUE MODE // 2026.07.23 @ 08:29:06 // Winter2019/RPGLIKE Player: Gallgagger Result: Destroyed by S-43 Plague with Heavy Machine Gun Performance ------------- Evolutions (7) 3500 Regions Visited (15) 3000 Robots Destroyed (8) 40 Value Destroyed (298) 298 Prototype IDs (32) 640 Alien Tech Used (0) 0 Bonus (1769) 1769 TOTAL SCORE: 9247 Bonus ------- High Alert Combat Kills 20 Follower Combat Kills 82 Entered Garrisons 400 Used RIF Installer 500 Entered DSFs 500 Aligned with FarCom 300 Friendly Fire -33 Cogmind --------- Core Integrity 0/2800 Matter 273/300 Energy 24/100 System Corruption 5% Temperature Cool (68) Movement Flying (28) Location -3/Garrison Parts ------- > --- POWER (1) -------- (None) > --- PROPULSION (6) --- Electron Diverter Electron Diverter Electron Diverter Impulse Thruster Array > --- UTILITY (1) ------ Light Regenerative Plating > --- WEAPON (2) ------- Heavy Quantum Rifle > --- INVENTORY (3) ---- Chronowheel Latent Energy Streamer Peak State ------------ > --- POWER ------------ (None) > --- PROPULSION ------- Electron Diverter Electron Diverter Electron Diverter Impulse Thruster Array > --- UTILITY ---------- Light Regenerative Plating > --- WEAPON ----------- High-powered Disruptor Cannon > --- INVENTORY -------- Chronowheel Heavy Quantum Rifle Latent Energy Streamer [Rating: 78] Favorites ----------- Power None Propulsion Flight Unit Flight Unit Flight Unit Utility Advanced Focal Shield Device Advanced Focal Shield Protection Light Regenerative Plating Weapon Autogun Energy Gun Heavy Quantum Rifle Energy Cannon Cooled Nova Cannon Ballistic Gun Autogun Slashing Weapon Molecular Scythe Special Melee Weapon Advanced Datajack Build | -11 -10 -9 -9 -9 -8 -8 -7 -6 -6 -5 -5 -4 -3 -3 -3 ------- Run | Yrd Mat Mat Min Exi Min Mat Fac Fac Gar Fac DSF Fac Res Tes Gar Slots Evolved 6 | . 3 . . . . . . . . . 3 . . . . Power . | . . . . . . . . . . . . . . . . Propulsion 5 | . 2 . . . . . . . . . 3 . . . . Utility . | . . . . . . . . . . . . . . . . Weapon 1 | . 1 . . . . . . . . . . . . . . Parts Attached 21 | . 5 . . . . . . . . . 3 1 5 7 . Power . | . . . . . . . . . . . . . . . . Engine . | . . . . . . . . . . . . . . . . Core . | . . . . . . . . . . . . . . . . Reactor . | . . . . . . . . . . . . . . . . Propulsion 11 | . 3 . . . . . . . . . 3 . 4 1 . Treads . | . . . . . . . . . . . . . . . . Leg . | . . . . . . . . . . . . . . . . Wheel . | . . . . . . . . . . . . . . . . Hover . | . . . . . . . . . . . . . . . . Flight 11 | . 3 . . . . . . . . . 3 . 4 1 . Utility 2 | . . . . . . . . . . . . 1 . 1 . Device 1 | . . . . . . . . . . . . 1 . . . Storage . | . . . . . . . . . . . . . . . . Processor . | . . . . . . . . . . . . . . . . Hackware . | . . . . . . . . . . . . . . . . Protection 1 | . . . . . . . . . . . . . . 1 . Artifact . | . . . . . . . . . . . . . . . . Weapon 8 | . 2 . . . . . . . . . . . 1 5 . Energy Gun 1 | . . . . . . . . . . . . . . 1 . Energy Cannon 3 | . . . . . . . . . . . . . . 3 . Ballistic Gun 2 | . 2 . . . . . . . . . . . . . . Ballistic Cannon . | . . . . . . . . . . . . . . . . Launcher . | . . . . . . . . . . . . . . . . Special Weapon . | . . . . . . . . . . . . . . . . Impact Weapon . | . . . . . . . . . . . . . . . . Slashing Weapon 1 | . . . . . . . . . . . . . 1 . . Piercing Weapon . | . . . . . . . . . . . . . . . . Special Melee Weapon 1 | . . . . . . . . . . . . . . 1 . Unidentified Prototypes 7 | . . . . . . . . . . . . . 2 5 . Parts Lost 4 | . . . . . . . . . 2 . 1 1 . . . Power . | . . . . . . . . . . . . . . . . Propulsion 3 | . . . . . . . . . 2 . 1 . . . . Utility . | . . . . . . . . . . . . . . . . Weapon 1 | . . . . . . . . . . . . 1 . . . Highest Loss Streak 2 | . . . . . . . . . 2 . 1 1 . . . To Critical Strikes . | . . . . . . . . . . . . . . . . Average Backups 1 | . . . . 1 2 2 2 2 2 2 2 2 2 2 2 Power . | . . . . . . . . . . . . . . . . Propulsion . | . . . . . . . . . . . . . . . . Utility . | . . . . . . . . . . . . . . . . Weapon . | . . . . . 1 1 1 1 1 1 1 1 1 1 1 Tool/Special . | . . . . . . . . . . . . . . . . Unused Backups 1 | . . . . . . . . . . . . . . . 1 Power . | . . . . . . . . . . . . . . . . Propulsion . | . . . . . . . . . . . . . . . . Utility . | . . . . . . . . . . . . . . . . Weapon . | . . . . . . . . . . . . . . . . Tool/Special 1 | . . . . . . . . . . . . . . . 1 Average Slot Usage (%) 60 | . 52 71 71 71 71 71 71 71 67 42 38 42 52 66 60 Flight 36 | . 28 42 42 42 42 42 42 42 38 14 14 30 36 40 40 Device 3 | . . . . . . . . . . . . 5 10 6 . Energy Cannon 1 | . . . . . . . . . . . . . . 6 6 Ballistic Gun 14 | . 23 28 28 28 28 28 28 28 28 28 24 6 . . . Slashing Weapon 2 | . . . . . . . . . . . . . 5 6 . Peak Build Rating 78 | . 7 7 7 9 9 9 9 9 9 7 46 53 60 78 78 Average Rating 34 | . 5 7 7 8 9 9 9 9 8 7 15 49 56 70 73 On Entrance 19 | . . 7 7 7 9 9 9 9 9 7 7 46 51 60 78 Avg Prop Armor Cover (%) 9 | . . . . . . . . . . . . . 11 8 . Naked Turns 17 | . 17 . . . . . . . . . . . . . . Heaviest Build 24 | . 6 6 6 6 6 6 6 6 6 6 6 6 7 24 24 Greatest Support 52 | 3 17 17 17 17 17 17 17 17 17 9 50 50 52 45 45 Greatest Overweight (x) . | . . . . . . . . . . . . . . . . Average Overweight (x) . | . . . . . . . . . . . . . . . . Largest Inventory Capacity 3 | . . . . 2 2 2 2 2 2 2 2 2 2 3 3 Average Capacity 1 | . . . . 1 2 2 2 2 2 2 2 2 2 2 3 Most Carried 3 | . . . . 2 2 2 2 2 2 2 2 2 2 3 3 Average Carried 1 | . . . . 1 2 2 2 2 2 2 2 2 2 2 2 Final Capacity 3 | . . . . 2 2 2 2 2 2 2 2 2 2 3 3 Final Carried 3 | . . . . 2 2 2 2 2 2 2 2 2 2 3 2 Class Distribution -------------------- 36% | Hacker-Mutant 33% | Hacker-Sprinter 30% | Mutant Dominant Class ---------------- Mutant | -10/Materials Mutant | -9/Materials Mutant | -9/Mines Mutant | -9/Exiles Mutant | -8/Mines Mutant | -8/Materials Hacker-Mutant | -7/Factory Hacker-Mutant | -6/Factory Hacker-Mutant | -6/Garrison Hacker-Mutant | -5/Factory Hacker-Mutant | -5/DSF Hacker-Mutant | -4/Factory Hacker-Sprinter | -3/Research Hacker-Sprinter | -3/Testing Hacker-Sprinter | -3/Garrison Resources | -11 -10 -9 -9 -9 -8 -8 -7 -6 -6 -5 -5 -4 -3 -3 -3 ----------- Run | Yrd Mat Mat Min Exi Min Mat Fac Fac Gar Fac DSF Fac Res Tes Gar Matter Collected 503 | 29 . . . 292 . . . . . . 8 1 19 154 . Remotely . | . . . . . . . . . . . . . . . . Salvage Created 106 | . . . . . . . . . . . . . . 56 50 Parts 15 | . 5 . 3 . . . . . . . . . . 3 4 Haulers Intercepted . | . . . . . . . . . . . . . . . . Recyclers Shooed . | . . . . . . . . . . . . . . . . Parts Field Recycled . | . . . . . . . . . . . . . . . . Retrieved Matter . | . . . . . . . . . . . . . . . . Parts Self-Destructed . | . . . . . . . . . . . . . . . . Prevented . | . . . . . . . . . . . . . . . . Parts Restored . | . . . . . . . . . . . . . . . . Kills | -11 -10 -9 -9 -9 -8 -8 -7 -6 -6 -5 -5 -4 -3 -3 -3 ------- Run | Yrd Mat Mat Min Exi Min Mat Fac Fac Gar Fac DSF Fac Res Tes Gar Combat Hostiles Destroyed 7 | . 4 . 1 . . . . . . . . . . . 2 Guns 7 | . 4 . 1 . . . . . . . . . . . 2 Classes Destroyed 3 | . 2 . . . . . . . . . . . . 1 . Swarmer 6 | . 3 . 1 . . . . . . . . . . . 2 Grunt 1 | . 1 . . . . . . . . . . . . . . Researcher 1 | . . . . . . . . . . . . . . 1 . Best Kill Streak 3 | . 3 . 1 . . . . . . . . . . 1 2 Combat Bots Only 3 | . 3 . 1 . . . . . . . . . . . 2 Max Kills in Single Turn 1 | . 1 . 1 . . . . . . . . . . 1 1 Gunslinging . | . . . . . . . . . . . . . . . . Exploded . | . . . . . . . . . . . . . . . . Melee . | . . . . . . . . . . . . . . . . Uniques/NPCs Destroyed . | . . . . . . . . . . . . . . . . Combat | -11 -10 -9 -9 -9 -8 -8 -7 -6 -6 -5 -5 -4 -3 -3 -3 -------- Run | Yrd Mat Mat Min Exi Min Mat Fac Fac Gar Fac DSF Fac Res Tes Gar Hostile Shots Fired 446 | . 25 12 8 5 13 79 . 11 41 . 9 83 85 66 9 Missed 241 | . 9 8 3 2 7 45 . 9 16 . 5 40 52 42 3 Hits 205 | . 16 4 5 3 6 34 . 2 25 . 4 43 33 24 6 Projectile 205 | . 16 4 5 3 6 34 . 2 25 . 4 43 33 24 6 Critical Strikes 12 | . . . . . . 3 . . 1 . 2 4 1 1 . Damage Taken 3631 | . 197 50 38 114 77 383 . 28 312 . 213 937 675 469 138 Core 3002 | . 156 38 28 94 71 320 . 25 256 . 207 769 599 358 81 Absorbed by Shields 79 | . . . . . . . . . 79 . . . . . . Redirected to Core 1924 | . 135 38 28 77 16 214 . 9 190 . 52 593 271 267 34 Ignored by Resistances 216 | . . . . . . . . . . . . 125 59 32 . Regen/Repaired (Parts) 27 | . . . . . . . . . . . . . . 17 10 Core Remaining (%) 46 | 100 95 . . . 57 36 36 . 4 . 24 16 . . . Volleys Fired 17 | . 9 . 1 . . . . . . . . . . 3 4 Largest 2 | . 2 . 1 . . . . . . . . . . 2 1 Hottest 130 | . 46 . 23 . . . . . . . . . . 130 80 Shots Fired 28 | . 18 . 1 . . . . . . . . . . 5 4 Gun 26 | . 18 . 1 . . . . . . . . . . 3 4 Cannon 2 | . . . . . . . . . . . . . . 2 . Launcher . | . . . . . . . . . . . . . . . . Special . | . . . . . . . . . . . . . . . . Kinetic 19 | . 18 . 1 . . . . . . . . . . . . Thermal 9 | . . . . . . . . . . . . . . 5 4 Explosive . | . . . . . . . . . . . . . . . . Electromagnetic . | . . . . . . . . . . . . . . . . Robot Hit Streak 12 | . 11 . 12 . . . . . . . . . . . 2 Robot Miss Streak 2 | . 1 . . . . . . . . . . . . . 2 Penetration Max . | . . . . . . . . . . . . . . . . Secondary Targets 1 | . 1 . . . . . . . . . . . . . . Max Gunslinging Chain 1 | . 1 . . . . . . . . . . . . . . Shots Hit Robots 18 | . 14 . 1 . . . . . . . . . . 1 2 Core Hits 9 | . 6 . 1 . . . . . . . . . . . 2 Critical Kills . | . . . . . . . . . . . . . . . . Critical Parts Destroyed . | . . . . . . . . . . . . . . . . Critical Strikes . | . . . . . . . . . . . . . . . . Melee Attacks 9 | . . . . . . . . . . . . . 5 4 . Impact . | . . . . . . . . . . . . . . . . Slashing 9 | . . . . . . . . . . . . . 5 4 . Piercing . | . . . . . . . . . . . . . . . . Sneak Attacks 1 | . . . . . . . . . . . . . . 1 . Combat Hostiles . | . . . . . . . . . . . . . . . . Follow-up Attacks . | . . . . . . . . . . . . . . . . Damage Inflicted 512 | . 201 . 12 46 . . . . . . . . . 175 78 Guns 291 | . 201 . 12 . . . . . . . . . . . 78 Cannons . | . . . . . . . . . . . . . . . . Explosions . | . . . . . . . . . . . . . . . . Melee 175 | . . . . . . . . . . . . . . 175 . Ramming 46 | . . . . 46 . . . . . . . . . . . Kinetic 213 | . 201 . 12 . . . . . . . . . . . . Thermal 78 | . . . . . . . . . . . . . . . 78 Explosive . | . . . . . . . . . . . . . . . . Electromagnetic . | . . . . . . . . . . . . . . . . Impact . | . . . . . . . . . . . . . . . . Slashing 175 | . . . . . . . . . . . . . . 175 . Piercing . | . . . . . . . . . . . . . . . . Highest Corruption 5 | . . . . 2 2 1 . . . . . 1 2 5 5 Average Corruption 1 | . . . . 1 2 1 . . . . . 1 1 2 5 Corruption Purged . | . . . . . . . . . . . . . . . . Corruption Blocked . | . . . . . . . . . . . . . . . . Effects 9 | . . . . 1 . . . . . . . 2 . 5 1 Message Errors 4 | . . . . 1 . . . . . . . 1 . 1 1 Matter Fused 2 | . . . . . . . . . . . . . . 2 . Energy Discharges 1 | . . . . . . . . . . . . . . 1 . Data Loss (minor) 2 | . . . . . . . . . . . . 1 . 1 . Overload Shots . | . . . . . . . . . . . . . . . . Overflow Damage 145 | . . . . . . . . . . . . . . 145 . Projectiles . | . . . . . . . . . . . . . . . . Explosions . | . . . . . . . . . . . . . . . . Melee 145 | . . . . . . . . . . . . . . 145 . Knockbacks . | . . . . . . . . . . . . . . . . Impact . | . . . . . . . . . . . . . . . . Kinetic . | . . . . . . . . . . . . . . . . Secondary . | . . . . . . . . . . . . . . . . Self-Inflicted Damage 40 | . . . . 40 . . . . . . . . . . . Shots . | . . . . . . . . . . . . . . . . Rammed 1 | . . . . 1 . . . . . . . . . . . Targets Rammed 1 | . . . . 1 . . . . . . . . . . . Kicked . | . . . . . . . . . . . . . . . . Crushed . | . . . . . . . . . . . . . . . . Highest Temperature 326 | . 37 . 7 . . 14 . . 2 . . 36 8 326 64 Average Temperature 57 | . 18 . 7 . . 7 . . 2 . . 12 3 98 36 Received Heat Transfer 604 | . 93 15 . . 36 81 . . 54 . . 187 63 75 . Effects 1 | . . . . . . . . . . . . . . 1 . Interference 1 | . . . . . . . . . . . . . . 1 . Siege Activations . | . . . . . . . . . . . . . . . . Martial Activations . | . . . . . . . . . . . . . . . . Shielding Activations . | . . . . . . . . . . . . . . . . Robots Disrupted . | . . . . . . . . . . . . . . . . Combat Hostiles . | . . . . . . . . . . . . . . . . Robots Corrupted . | . . . . . . . . . . . . . . . . Combat Hostiles . | . . . . . . . . . . . . . . . . Parts Fried . | . . . . . . . . . . . . . . . . Impact Corruptions . | . . . . . . . . . . . . . . . . Robots Melted . | . . . . . . . . . . . . . . . . Combat Hostiles . | . . . . . . . . . . . . . . . . Parts Melted . | . . . . . . . . . . . . . . . . Heat Transferred 74 | . . . . . . . . . . . . . . . 74 Parts Sabotaged . | . . . . . . . . . . . . . . . . Parts Stolen . | . . . . . . . . . . . . . . . . Parts Stripped . | . . . . . . . . . . . . . . . . Power Chain Reactions . | . . . . . . . . . . . . . . . . Alert | -11 -10 -9 -9 -9 -8 -8 -7 -6 -6 -5 -5 -4 -3 -3 -3 ------- Run | Yrd Mat Mat Min Exi Min Mat Fac Fac Gar Fac DSF Fac Res Tes Gar Maximum Alert Level 2 | . . . . . . . . . 1 . . 1 1 2 2 Low Security (%) 74 | 100 100 100 100 . 100 100 100 100 79 100 100 98 69 27 . Level 1 10 | . . . . . . . . . 20 . . 1 30 15 . Level 2 14 | . . . . . . . . . . . . . . 57 100 Level 3 . | . . . . . . . . . . . . . . . . Level 4 . | . . . . . . . . . . . . . . . . Level 5 . | . . . . . . . . . . . . . . . . High Security . | . . . . . . . . . . . . . . . . Max Security . | . . . . . . . . . . . . . . . . Peak Influence 626 | . 95 31 30 . . 156 70 75 242 126 88 208 301 626 479 Initial 420 | . . 31 3 . . . 70 34 52 126 88 40 108 163 420 Average 159 | . 60 19 11 . . 63 70 37 112 126 85 56 162 391 432 Influence Increases 1867 | . 115 7 30 . . 196 . 51 210 . . 248 303 648 59 Destroy 0b10 Robot/C 280 | . 80 . 20 . . . . . . . . . . 140 40 Destroy 0b10 Robot/NC 5 | . . . . . . . . . . . . . . 5 . Destroy Leader 40 | . 20 . 10 . . . . . . . . . . 10 . Allied During Kill 16 | . . . . . . . . . . . . . . 16 . Successful Hack 118 | . . 7 . . . 16 . 21 . . . 8 42 24 . Disable Machine 105 | . 15 . . . . . . . . . . . . 90 . Destroy Structure 28 | . . . . . . . . . . . . . 6 18 4 Partial Spotted 150 | . . . . . . . . . . . . . 90 45 15 Lose Combat Pursuer 1125 | . . . . . . 180 . 30 210 . . 240 165 300 . Influence Decreases 1388 | . 40 74 8 30 . 40 86 46 43 116 48 118 220 378 141 Entered New Map 785 | . . 44 5 30 . . 86 36 23 116 38 38 100 128 141 Time Decay 433 | . 40 30 3 . . 40 . 10 . . . 70 110 130 . Search Patrol Dispatched 100 | . . . . . . . . . . . . . . 100 . Lost Part 40 | . . . . . . . . . 20 . 10 10 . . . Lost Ally 30 | . . . . . . . . . . . . . 10 20 . Squads Dispatched 16 | . 2 2 . . . 5 . . . . . 2 3 2 . Investigation 10 | . 1 1 . . . 5 . . . . . 1 1 1 . Extermination 2 | . . . . . . . . . . . . . 1 1 . Reinforcement 4 | . 1 1 . . . . . . . . . 1 1 . . Assault . | . . . . . . . . . . . . . . . . Garrison . | . . . . . . . . . . . . . . . . Intercept . | . . . . . . . . . . . . . . . . Searches Triggered 1 | . . . . . . . . . . . . . . 1 . Construction Impeded . | . . . . . . . . . . . . . . . . Haulers Reinforced . | . . . . . . . . . . . . . . . . Active Scanning Responses . | . . . . . . . . . . . . . . . . Cargo Convoy Interrupts . | . . . . . . . . . . . . . . . . Stealth | -11 -10 -9 -9 -9 -8 -8 -7 -6 -6 -5 -5 -4 -3 -3 -3 --------- Run | Yrd Mat Mat Min Exi Min Mat Fac Fac Gar Fac DSF Fac Res Tes Gar Distress Signals 10 | . 1 . . . . 1 . . . . . 3 2 3 . Communications Jammed . | . . . . . . . . . . . . . . . . Distress Signals . | . . . . . . . . . . . . . . . . Times Spotted 161 | . 9 8 3 1 9 22 . 4 15 . 1 28 26 32 3 Peak Tracking Total 18 | . 4 6 3 10 9 18 . 4 15 . 1 16 17 11 3 Tactical Retreats 22 | . . . . 1 . 3 . 1 4 . . 5 3 5 . Traps | -11 -10 -9 -9 -9 -8 -8 -7 -6 -6 -5 -5 -4 -3 -3 -3 ------- Run | Yrd Mat Mat Min Exi Min Mat Fac Fac Gar Fac DSF Fac Res Tes Gar Traps Triggered 13 | . 1 . . . . . . . 7 . 2 1 . 2 . Indirectly . | . . . . . . . . . . . . . . . . Trap Hack Attempts . | . . . . . . . . . . . . . . . . Triggered . | . . . . . . . . . . . . . . . . Disarmed . | . . . . . . . . . . . . . . . . Reprogrammed . | . . . . . . . . . . . . . . . . Reused . | . . . . . . . . . . . . . . . . Traps Extracted . | . . . . . . . . . . . . . . . . Installed . | . . . . . . . . . . . . . . . . Triggered . | . . . . . . . . . . . . . . . . Machines | -11 -10 -9 -9 -9 -8 -8 -7 -6 -6 -5 -5 -4 -3 -3 -3 ---------- Run | Yrd Mat Mat Min Exi Min Mat Fac Fac Gar Fac DSF Fac Res Tes Gar Machines Disabled 8 | . 1 . . 1 . . . . . . . . . 6 . Max in Single Turn 1 | . 1 . . 1 . . . . . . . . . 1 . Garrison Relay 1 | . . . . . . . . . . . . . . . 1 Machines Repaired . | . . . . . . . . . . . . . . . . Machines Dismantled . | . . . . . . . . . . . . . . . . Machines Sabotaged . | . . . . . . . . . . . . . . . . Overloaded Fab Kills . | . . . . . . . . . . . . . . . . Hacking | -11 -10 -9 -9 -9 -8 -8 -7 -6 -6 -5 -5 -4 -3 -3 -3 --------- Run | Yrd Mat Mat Min Exi Min Mat Fac Fac Gar Fac DSF Fac Res Tes Gar Machines Accessed 21 | . . 2 . 1 . 6 . 1 . 1 . 2 5 3 . Terminals 18 | . . 2 . . . 6 . . . 1 . 2 5 2 . Fabricators . | . . . . . . . . . . . . . . . . Repair Stations . | . . . . . . . . . . . . . . . . Recycling Units . | . . . . . . . . . . . . . . . . Scanalyzers . | . . . . . . . . . . . . . . . . Garrison Access 2 | . . . . . . . . 1 . . . . . 1 . Total Hacks 40 | . . 6 . 1 . 13 . 1 . 1 . 4 10 4 . Successful 13 | . . 1 . 1 . 2 . 1 . 1 . 1 3 3 . Failed 27 | . . 5 . . . 11 . . . . . 3 7 1 . Catastrophic 16 | . . 4 . . . 6 . . . . . 2 3 1 . Database Lockouts . | . . . . . . . . . . . . . . . . Manual 34 | . . 6 . 1 . 13 . . . . . 4 10 . . Terminals 36 | . . 6 . . . 13 . . . 1 . 4 10 2 . Fabricators . | . . . . . . . . . . . . . . . . Repair Stations . | . . . . . . . . . . . . . . . . Recycling Units . | . . . . . . . . . . . . . . . . Scanalyzers . | . . . . . . . . . . . . . . . . Garrison Access 3 | . . . . . . . . 1 . . . . . 2 . Terminal Hacks 9 | . . 1 . 1 . 2 . . . 1 . 1 1 2 . Open Door 1 | . . . . . . . . . . . . . . 1 . Open DSF 1 | . . . . . . . . . . 1 . . . . . Level Access Points 2 | . . . . . . 1 . . . . . 1 . . . Branch Access Points 3 | . . 1 . . . 1 . . . . . . 1 . . Zone Layout 1 | . . . . . . . . . . . . . . 1 . Proto ID Catalog 1 | . . . . 1 . . . . . . . . . . . Fabricator Hacks . | . . . . . . . . . . . . . . . . Repair Station Hacks . | . . . . . . . . . . . . . . . . Recycling Unit Hacks . | . . . . . . . . . . . . . . . . Scanalyzer . | . . . . . . . . . . . . . . . . Garrison Access Hacks 2 | . . . . . . . . 1 . . . . . 1 . Unlock Access 2 | . . . . . . . . 1 . . . . . 1 . Unauthorized Hacks 2 | . . . . . . . . . . . . . 2 . . Terminals 2 | . . . . . . . . . . . . . 2 . . Assimilate 1 | . . . . . . . . . . . . . 1 . . Botnet 1 | . . . . . . . . . . . . . 1 . . Fabricators . | . . . . . . . . . . . . . . . . Repair Stations . | . . . . . . . . . . . . . . . . Recycling Units . | . . . . . . . . . . . . . . . . Scanalyzers . | . . . . . . . . . . . . . . . . Garrison Access . | . . . . . . . . . . . . . . . . Data Cores Recovered . | . . . . . . . . . . . . . . . . Used . | . . . . . . . . . . . . . . . . Hacking Detections 15 | . . 2 . . . 6 . . . 1 . 1 4 1 . Full Trace Events 9 | . . 1 . . . 5 . . . . . 1 1 1 . Feedback Events 1 | . . . . . . 1 . . . . . . . . . Corruption 1 | . . . . . . 1 . . . . . . . . . Feedback Blocked . | . . . . . . . . . . . . . . . . Robot Schematics Acquired 2 | . . . . . . . . . . . . . . 2 . Robots Built . | . . . . . . . . . . . . . . . . Authchips . | . . . . . . . . . . . . . . . . Time . | . . . . . . . . . . . . . . . . Total Robot Build Rating . | . . . . . . . . . . . . . . . . Part Schematics Acquired 2 | . . . . . . . . . . . . . . 2 . Parts Built . | . . . . . . . . . . . . . . . . Authchips . | . . . . . . . . . . . . . . . . Time . | . . . . . . . . . . . . . . . . Total Part Build Rating . | . . . . . . . . . . . . . . . . Part Studies Acquired . | . . . . . . . . . . . . . . . . Parts Repaired . | . . . . . . . . . . . . . . . . Time . | . . . . . . . . . . . . . . . . Parts Recycled . | . . . . . . . . . . . . . . . . Recycled Matter . | . . . . . . . . . . . . . . . . Retrieved Matter . | . . . . . . . . . . . . . . . . Retrieved Components . | . . . . . . . . . . . . . . . . Parts Scanalyzed . | . . . . . . . . . . . . . . . . Part Schematics Acquired . | . . . . . . . . . . . . . . . . Parts Damaged . | . . . . . . . . . . . . . . . . Bothacking | -11 -10 -9 -9 -9 -8 -8 -7 -6 -6 -5 -5 -4 -3 -3 -3 ------------ Run | Yrd Mat Mat Min Exi Min Mat Fac Fac Gar Fac DSF Fac Res Tes Gar Used RIF Installer 1 | . . . . . . . . . . . . . . . 1 Robots Hacked . | . . . . . . . . . . . . . . . . Non-combat . | . . . . . . . . . . . . . . . . Combat . | . . . . . . . . . . . . . . . . Robot Hacks Applied . | . . . . . . . . . . . . . . . . Relay Couplers Released 1 | . . . . . . . . . . . . . . . 1 Machine Destruction 1 | . . . . . . . . . . . . . . . 1 Fabnet Peak Effective % . | . . . . . . . . . . . . . . . . Robots Rewired 1 | . . . . . . . . . . . . . . 1 . Allies Hacked 1 | . . . . . . . . . . . . . 1 . . Hacks Repelled . | . . . . . . . . . . . . . . . . Allies | -11 -10 -9 -9 -9 -8 -8 -7 -6 -6 -5 -5 -4 -3 -3 -3 -------- Run | Yrd Mat Mat Min Exi Min Mat Fac Fac Gar Fac DSF Fac Res Tes Gar Total Allies 2 | . . . . . . . . . . . . . 1 1 . Largest Group 1 | . . . . . . . . . . . . . 1 1 . Highest-Rated Group 159 | . . . . . . . . . . . . . 45 159 . Highest-Rated Ally 159 | . . . . . . . . . . . . . 45 159 . Total Orders . | . . . . . . . . . . . . . . . . Ally Attacks 18 | . . . . . . . . . . . . . . 18 . Total Damage 1030 | . . . . . . . . . . . . . . 1030 . Kills 7 | . . . . . . . . . . . . . . 7 . Allies Corrupted 2 | . . . . . . . . . . . . . 1 1 . Allies Melted . | . . . . . . . . . . . . . . . . Intel | -11 -10 -9 -9 -9 -8 -8 -7 -6 -6 -5 -5 -4 -3 -3 -3 ------- Run | Yrd Mat Mat Min Exi Min Mat Fac Fac Gar Fac DSF Fac Res Tes Gar Active Infowar (turns) . | . . . . . . . . . . . . . . . . Robot Analysis Total . | . . . . . . . . . . . . . . . . Derelict Logs Recovered . | . . . . . . . . . . . . . . . . Drone Launches . | . . . . . . . . . . . . . . . . Drone Recoveries . | . . . . . . . . . . . . . . . . Exploration | -11 -10 -9 -9 -9 -8 -8 -7 -6 -6 -5 -5 -4 -3 -3 -3 ------------- Run | Yrd Mat Mat Min Exi Min Mat Fac Fac Gar Fac DSF Fac Res Tes Gar Turns Passed 1367 | 10 113 67 36 102 32 99 15 26 113 3 69 150 230 273 29 Spaces Moved 3411 | 20 143 197 100 289 94 292 45 76 178 8 91 432 685 704 57 Core 68 | 20 44 . . . . . . . . . 4 . . . . Treads . | . . . . . . . . . . . . . . . . Legs . | . . . . . . . . . . . . . . . . Wheels . | . . . . . . . . . . . . . . . . Hover . | . . . . . . . . . . . . . . . . Flight 3343 | . 99 197 100 289 94 292 45 76 178 8 87 432 685 704 57 Fastest Speed 28 | 50 34 34 34 34 34 34 34 34 34 40 34 34 28 28 28 Average Speed 32 | 50 39 34 34 34 34 34 34 34 34 40 38 34 30 28 28 Slowest Speed 50 | 50 50 34 34 34 34 34 34 34 40 40 50 34 35 29 28 Overloaded Moves . | . . . . . . . . . . . . . . . . Propulsion Burnouts . | . . . . . . . . . . . . . . . . Robots Hopped 116 | . 3 7 2 . 5 27 . 1 1 . 2 16 20 32 . Potential Cave-ins 2 | . . . . . . . . . . . . . 2 . . Cave-ins Triggered . | . . . . . . . . . . . . . . . . Exploration Rate (%) 32 | 3 34 29 37 64 37 43 2 5 39 1 89 22 23 80 7 Regions Visited 15 Branch Regions 4 Pre-discovered Areas . | . . . . . . . . . . . . . . . . Known Exits Taken 7 | . . 1 . . . 1 . 1 . 1 . 1 1 1 . Unknown Exits Taken 6 | 1 1 . 1 1 1 . 1 . . . . . . . . Scrap Searched 1 | . . . . . 1 . . . . . . . . . . Spaces Dug 8 | . . . . . . . . . . . . . 5 3 . Terrain Destroyed 10 | . . . . . . . . . . . . . 5 3 2 Melee 5 | . . . . . . . . . . . . . 5 . . Projectile 5 | . . . . . . . . . . . . . . 3 2 AOE . | . . . . . . . . . . . . . . . . Terrain Rammed 1 | . . . . 1 . . . . . . . . . . . Walls Destroyed . | . . . . . . . . . . . . . . . . Machines Disabled 1 | . . . . 1 . . . . . . . . . . . Actions | -11 -10 -9 -9 -9 -8 -8 -7 -6 -6 -5 -5 -4 -3 -3 -3 --------- Run | Yrd Mat Mat Min Exi Min Mat Fac Fac Gar Fac DSF Fac Res Tes Gar Total 3489 | 19 179 189 98 292 88 264 44 74 226 7 121 418 677 727 66 Wait 32 | . 18 . . . . . . . . . . 1 . 10 3 Move 3184 | 19 136 183 96 288 83 244 44 73 173 7 86 402 647 646 57 Hop 94 | . 3 6 1 . 5 20 . 1 1 . 2 13 17 25 . Pick Up 4 | . . . . 2 . . . . . . . . . 2 . Fast Attach 17 | . 5 . . . . . . . . . 3 1 5 3 . Attach 1 | . . . . . . . . . . . . . . . 1 Detach . | . . . . . . . . . . . . . . . . Swap 7 | . . . . . . . . . . . . . . 7 . Drop 8 | . . . . . . . . . . . . . 3 4 1 Fire 17 | . 9 . 1 . . . . . . . . . . 3 4 Melee 9 | . . . . . . . . . . . . . 5 4 . Ram 2 | . . . . 2 . . . . . . . . . . . Kick . | . . . . . . . . . . . . . . . . Crush . | . . . . . . . . . . . . . . . . Escape Stasis 93 | . . . . . . . . . 52 . 30 1 . 10 . Rewire 10 | . . . . . . . . . . . . . . 10 . Trap . | . . . . . . . . . . . . . . . . Miscellaneous 11 | . 8 . . . . . . . . . . . . 3 . Route ------- -11/Scrapyard -10/Materials -9/Materials (discovered 3 exits: *Mat / *Min x2) -9/Mines -9/Exiles (discovered 2 exits: [*Min x2]) -8/Mines -8/Materials (discovered 3 exits: *Fac x3) -7/Factory -6/Factory -6/Garrison (discovered 2 exits: *Fac x2) -5/Factory -5/DSF -4/Factory (discovered 4 exits: *Res x4) -3/Research (discovered 3 exits: Arm / *Tes x2) -3/Testing -3/Garrison History --------- Turn | Location | Event 2 | -11/Scrapyard | Discovered new exit (range 16) 11 | -11/Scrapyard | Entered Materials 28 | -10/Materials | Upgraded with Weapon slot (x1) 43 | -10/Materials | Upgraded with Propulsion slot (x2) 114 | -10/Materials | Discovered new exit (range 8) 124 | -10/Materials | Entered another Materials area 126 | -9/Materials | Reached level 2 152 | -9/Materials | Discovered new exit (range 4) 167 | -9/Materials | Discovered new exit (range 6) 180 | -9/Materials | Identified exit to Mines 191 | -9/Materials | Entered Mines 225 | -9/Mines | Deemed a non-threat by the Exiles lab entrance 226 | -9/Mines | Discovered new exit (range 5) 227 | -9/Mines | Entered Exiles 233 | -9/Exiles | Discovered new exit (range 15) 237 | -9/Exiles | Met 8R-AWN 241 | -9/Exiles | Met EX-HEX 251 | -9/Exiles | Met EX-BIN 255 | -9/Exiles | Reached level 3 255 | -9/Exiles | Aligned with FarCom system 255 | -9/Exiles | Given EX-Vault access code 263 | -9/Exiles | Opened EX-Vault 265 | -9/Exiles | Found Chronowheel 267 | -9/Exiles | Found Latent Energy Streamer 274 | -9/Exiles | Warned to stay clear of 0b10 Research branches 280 | -9/Exiles | Exiles lab attacked by MAIN.C 307 | -9/Exiles | Attacked by the Exiles 316 | -9/Exiles | Build established: Mutant 325 | -9/Exiles | Discovered new exit (range 12) 329 | -9/Exiles | Stole two prototypes: Chronowheel, Latent Energy Streamer 329 | -9/Exiles | Entered Mines 358 | -8/Mines | Discovered new exit (range 7) 361 | -8/Mines | Entered Materials 363 | -8/Materials | Reached level 4 386 | -8/Materials | Core integrity fell below 50% 449 | -8/Materials | Identified exit to Factory 460 | -8/Materials | Entered Factory 461 | -7/Factory | Core integrity fell below 50% 462 | -7/Factory | Reached level 5 470 | -7/Factory | Discovered new exit (range 8) 475 | -7/Factory | Entered another Factory area 476 | -6/Factory | Core integrity fell below 50% 477 | -6/Factory | Reached level 6 499 | -6/Factory | Identified exit to Garrison 501 | -6/Factory | Entered Garrison 553 | -6/Garrison | Discovered new exit (range 10) 556 | -6/Garrison | Attempted to access garrison exit controls, blocked by remote lockdown 567 | -6/Garrison | Triggered checkpoint 598 | -6/Garrison | Core integrity fell below 20% 610 | -6/Garrison | Discovered new exit (range 10) 614 | -6/Garrison | Entered Factory 615 | -5/Factory | Core integrity fell below 50% 615 | -5/Factory | Core integrity fell below 20% 616 | -5/Factory | Reached level 7 617 | -5/Factory | Identified exit to DSF 617 | -5/Factory | Entered DSF 617 | -5/DSF | Reached level 8 671 | -5/DSF | Upgraded with Propulsion slot (x3) 676 | -5/DSF | Additional patrols routed to DSF 682 | -5/DSF | Discovered new exit (range 14) 686 | -5/DSF | Entered Factory 687 | -4/Factory | Core integrity fell below 50% 688 | -4/Factory | Reached level 9 713 | -4/Factory | Build established: Hacker-Mutant 730 | -4/Factory | Core integrity fell below 20% 775 | -4/Factory | Identified exit to Research 836 | -4/Factory | Entered Research 837 | -3/Research | Core integrity fell below 50% 837 | -3/Research | Core integrity fell below 20% 838 | -3/Research | Reached level 10 838 | -3/Research | Reached level 11 1003 | -3/Research | Identified exit to Armory 1003 | -3/Research | Identified exit to Testing 1066 | -3/Research | Entered Testing 1068 | -3/Testing | Reached level 12 1109 | -3/Testing | Rewired PY-CYLVB7JUUP 1163 | -3/Testing | Found Prototype Energy Cannon 1164 | -3/Testing | Identified Cld. Nova Cannon 1176 | -3/Testing | Spotted PH-4UY6ZQ8SON 1183 | -3/Testing | Spotted Striker 1183 | -3/Testing | Spotted Striker 1204 | -3/Testing | Build established: Hacker-Sprinter 1233 | -3/Testing | Found Prototype Protection 1233 | -3/Testing | Identified Lgt. Regenerative Plating 1300 | -3/Testing | Reached level 13 1316 | -3/Testing | Search patrols dispatched 1324 | -3/Testing | Found Prototype Energy Cannon 1324 | -3/Testing | Identified Hpw. Disruptor Cannon 1339 | -3/Testing | Identified exit to Garrison 1339 | -3/Testing | Entered Garrison 1350 | -3/Garrison | Installed Relay Interface Framework 1353 | -3/Garrison | Triggered checkpoint 1363 | -3/Garrison | Garrison Relay disabled 1368 | -3/Garrison | Destroyed by S-43 Plague with Heavy Machine Gun Last Messages --------------- 01333_ 7RY|CXTT|WALG R5ID=#8=Q:XOK 01334_ G-67 Veteran shuts down. 01339_ Connecting with Garrison Access... >>Unlock Access door unlocked. 01339_ EXIT=UNLOCKED: GARRISON 01339_ ALERT: Suspicious activity at Garrison Access T001. Dispatching Investigation squad. LOCATION=GARRISON GOAL=ESCAPE Initiating installation procedure... 01350_ Relay Interface Framework installed. With RIF installed, you can review your current list of abilities via the new button at the top-right of the HUD, or Spacebar+i. 01353_ Beams of light sweep through the air. An alarm sounds. 01358_ Dropped Hpw. Disruptor Cannon. 01363_ Garrison Relay disabled. 01363_ Relay Coupler [NC] tumbles out of relay unit. 01364_ S-43 Plague destroyed. 01367_ BAT CGO7MMS1U/C/OCQZ9 VLXYJG| Map ----- +----------------------------------------------------+ | ????????????????????????????????????????????? | | ????????????????????????????????????????????? | | ????????????????????????????????????????????? | | ????????????????????????????????????????????? | | ????????????????????????????????????????????? | | ????????????????????????????????????????????? | | ????????????????????????????????????????????? | | ????????????????????????????????????????????? | | ????????????????????????????????????????????? | | ????????????????????????????????????????????? | | ????????????????????????????????????????????? | | ????????????????????????????????????????????? | | ????????????????????????????????????????????? | | ????????????????????????????????????????????? | | ????????????????????????????????????????????? | | ???????????????????????????#????????????????? | | ??????????????????????????? ????????????????? | | ??????????????????????????# #???????????????? | | ??????????????????????????# #???????????????? | | ??????????????????????????# #???????????????? | | ??????????????????????????# #???????????????? | | ??????????????????????????# #???????????????? | | ???????????????#######????# #???????????????? | | ???????????????#"" ""#????# #???????????????? | | ????????????????#! ####### ######??????????? | | ????????????????# =@=%= #??????????? | | ????????????????##]#s%#### ### #??????????? | | ????????????????## ####????? #?# #??????????? | | ????????????????# #??????????# #??????????? | | ????????????????#" "#??????????# ########### | | ????????????????#" "#??????????# | | ????????????????#" "#??????????# | | ????????????????#"""#??????????## #########+ | | ????????????????#####???????????# #????????? | | ????????????????????????????????# #????????? | | ????????????????????????????????# #????????? | | ????????????????????????????????# #????????? | | ????????????????????????????????# #????????? | | ????????????????????????????????# #????????? | | ????????????????????????????????# #????????? | | ??????????????????????????????### #????????? | | ??????????????????????????????# #????????? | | ??????????????????????????????# #????????? | | ??????????????????????????????# #????????? | | ??????????????????????????????######????????? | | ????????????????????????????????????????????? | | ????????????????????????????????????????????? | | ????????????????????????????????????????????? | | ????????????????????????????????????????????? | | ????????????????????????????????????????????? | +----------------------------------------------------+ Best States ------------- Heat Dissipation 49 Energy Generation 15 Energy Capacity 100 Matter Stores 300 Matter Capacity 300 Sight Range 16 Terrain Scan Density 10 Armor Coverage 150 Resistance: KI 30 Evasion (%) 64 Offensive Hacking 10 Defensive Hacking 10 Item Schematics ----------------- Imp. Matter Compressor | -3/Testing | Archive Hvy. Dispersion Rifle | -3/Testing | Archive Robot Schematics ------------------ B-60 Warrior | -3/Testing | Archive A-02 Transporter | -3/Testing | Archive Fabricated ------------ Nothing Repaired ---------- Nothing Studied --------- None Alien Tech Used ----------------- None Achievements -------------- None Challenges ------------ None RPGLIKE | -11 -10 -9 -9 -9 -8 -8 -7 -6 -6 -5 -5 -4 -3 -3 -3 --------- Run | Yrd Mat Mat Min Exi Min Mat Fac Fac Gar Fac DSF Fac Res Tes Gar Levels Raised 12 | . . 1 . 1 . 1 1 1 . 1 1 1 2 2 . XP Earned 22301 | 3000 575 1535 650 350 500 1580 1500 1605 600 1500 1250 1540 2210 2846 1060 XP Spent 20630 | . 1900 . . 750 . 1600 . . . . 6350 4160 3040 2830 . Upgrades 64 | . 4 . . 2 . 10 . . . . 15 16 8 9 . Propulsion Slot 5 | . 2 . . . . . . . . . 3 . . . . Weapon Slot 1 | . 1 . . . . . . . . . . . . . . Core Integrity 44 | . . . . . . 6 . . . . 10 16 8 4 . Heat Dissipation 4 | . . . . . . . . . . . . . . 4 . Energy Generation 2 | . . . . . . . . . . . 2 . . . . Mass Support 1 | . 1 . . . . . . . . . . . . . . Inventory Capacity 3 | . . . . 2 . . . . . . . . . 1 . Hack Attack % 2 | . . . . . . 2 . . . . . . . . . Hack Defense % 2 | . . . . . . 2 . . . . . . . . . Protomatter Created 114 | . 80 . 16 . . . . . . . . . . . 18 Integrity Restored 212 | . 143 . . . . . . . . . . . . 69 . Core 200 | . 131 . . . . . . . . . . . . 69 . Parts 12 | . 12 . . . . . . . . . . . . . . Protomatter Decayed 93 | . . . . . . 16 . . . . . . . 77 . Game ------ Seed DamperMyomerMicrothruster Manual? 0 Play Time 00:19:15 Cumulative 687.8 hours Start 2026.07.23 @ 08:10:19 End 2026.07.23 @ 08:29:06 Sessions 1 Manual Loads 0 Difficulty Rogue Special Mode Winter2019/RPGLIKE Game No. 346 Rogue 192 Adventurer 154 Explorer 0 Win Type - Total 24 Types 4/6/5/3/2/1/0/1/1/1 Lore% 95 Gallery% 88 Achievement% 68 Wizard Run 0 Options --------- Layout 0 ASCII 0 Keyboard 0 Movement Numpad Keybinds 0 Fullscreen 2 Font 18/SmallcapsGlow Map View 76x50 Zoom Use 0% Tactical HUD 1 Map Filters NONE Filters NONE Steam 1 RUN: cc50244d-8c36-48cd-bf0c-701c5eebed75